Workbook

Sheet ADA CONSTRUCTION AUG 2025 CAA
A1: DEPARTMENT OF TRANSPORTATION - CALTRANS
A2: DBE Commitment at Award (CAA) on Federally Funded Major Construction Contracts - October 1, 2024 - August 31, 2025
A4: Total Award Amount Year-to-Date (YTD) | C4: Total DBE Commitment Amount YTD | F4: Total Prime Contracts Awarded YTD
A5: 2263070800 | C5: =SUM(C7:C18) -> 517203231.8 | F5: =SUM(C319:C341,I319:I341,F319:F341) -> 131
A6: Groups | C6: Commitment Dollars YTD | D6: Firms YTD | E6: Contracts YTD | F6: % of Contracts | G6: % of DBE $ | H6: % of Total $
A7: Hispanic American Male | C7: 172114468.7 | D7: =COUNTIF(D30:D141,"M") -> 82 | E7: =SUMIF(D30:D141,"M",E30:E141) -> 321 | F7: =E7/E20 -> 0.3213213213 | G7: =C7/C5 -> 0.3327791826 | H7: =C7/A5 -> 0.07605350605
A8: Hispanic American Female | C8: =SUMIF(D30:D141,"F", C30:C141) -> 60014656.08 | D8: =COUNTIF(D30:D141,"F") -> 27 | E8: =SUMIF(D30:D141,"F",E30:E141) -> 128 | F8: =E8/E20 -> 0.1281281281 | G8: =C8/C5 -> 0.116036893 | H8: =C8/A5 -> 0.02651912441
A9: African American Male | C9: =SUMIF(D160:D179,"m", C160:C179) -> 14071205.1 | D9: =COUNTIF(D160:D179,"M") -> 15 | E9: =SUMIF(D160:D179,"M",E160:E179) -> 37 | F9: =E9/E20 -> 0.03703703704 | G9: =C9/C5 -> 0.02720633638 | H9: =C9/A5 -> 0.006217748514
A10: African American Female | C10: =SUMIF(D160:D179,"F", C160:C179) -> 7712982.24 | D10: =COUNTIF(D160:D179,"F") -> 4 | E10: =SUMIF(D160:D179,"F",E160:E179) -> 14 | F10: =E10/E20 -> 0.01401401401 | G10: =C10/C5 -> 0.01491286551 | H10: =C10/A5 -> 0.003408193081
A11: Asian Pacific Male | C11: =SUMIF(D205:D227,"m", C205:C227) -> 22540605.56 | D11: =COUNTIF(D205:D227,"M") -> 14 | E11: =SUMIF(D205:D227,"M",E205:E227) -> 55 | F11: =E11/E20 -> 0.05505505506 | G11: =C11/C5 -> 0.04358171831 | H11: =C11/A5 -> 0.009960185764
A12: Asian Pacific Female | C12: =SUMIF(D205:D227,"F", C205:C227) -> 21316784.66 | D12: =COUNTIF(D205:D227,"F") -> 7 | E12: =SUMIF(D205:D227,"F",E205:E227) -> 47 | F12: =E12/E20 -> 0.04704704705 | G12: =C12/C5 -> 0.04121549006 | H12: =C12/A5 -> 0.00941940688
A13: Subcontinent Asian Male | C13: =SUMIF(D182:D202,"m", C182:C202) -> 24375272.05 | D13: =COUNTIF(D182:D202,"M") -> 16 | E13: =SUMIF(D182:D202,"M",E182:E202) -> 54 | F13: =E13/E20 -> 0.05405405405 | G13: =C13/C5 -> 0.04712900181 | H13: =C13/A5 -> 0.01077088355
A14: Subcontinent Asian Female | C14: =SUMIF(D182:D202,"F", C182:C202) -> 0 | D14: =COUNTIF(D182:D202,"F") -> 0 | E14: =SUMIF(D182:D202,"F",E182:E202) -> 0 | F14: =E14/E20 -> 0 | G14: =C14/C5 -> 0 | H14: =C14/A5 -> 0
A15: Native American Male | C15: =SUMIF(D144:D157,"m", C144:C157) -> 15288352.69 | D15: =COUNTIF(D144:D157,"M") -> 7 | E15: =SUMIF(D144:D157,"M",E144:E157) -> 28 | F15: =E15/E20 -> 0.02802802803 | G15: =C15/C5 -> 0.02955966195 | H15: =C15/A5 -> 0.006755578612
A16: Native American Female | C16: =SUMIF(D144:D157,"F", C144:C157) -> 7876625.15 | D16: =COUNTIF(D144:D157,"F") -> 5 | E16: =SUMIF(D144:D157,"F",E144:E157) -> 9 | F16: =E16/E20 -> 0.009009009009 | G16: =C16/C5 -> 0.01522926514 | H16: =C16/A5 -> 0.003480503196
A17: Non Minority Women | C17: =SUMIF(D234:D314,"F", C234:C314) -> 171834199.6 | D17: =COUNTIF(D234:D314,"F") -> 77 | E17: =SUMIF(D234:D314,"F",E234:E314) -> 305 | F17: =E17/E20 -> 0.3053053053 | G17: =C17/C5 -> 0.3322372889 | H17: =C17/A5 -> 0.07592966141
A18: Other Men | C18: =SUMIF(D230:D231,"m", C230:C231) -> 58080 | D18: =COUNTIF(D230:D231,"M") -> 1 | E18: =SUMIF(D230:D231,"M",E230:E231) -> 1 | F18: =E18/E20 -> 0.001001001001 | G18: =C18/C5 -> 0.0001122962821 | H18: =C18/A5 -> 2.566424347e-05
F19: =E19/E20 -> 0 | G19: =C19/C5 -> 0 | H19: =C19/A5 -> 0
A20: Total | C20: =SUM(C7:C18) -> 517203231.8 | D20: =SUM(D7:D19) -> 255 | E20: =SUM(E7:E19) -> 999
A21: Total Primes Contracts | C21: =SUM(C319:C341,I319:I341,F319:F341) -> 131
A23: Yellow = DBEs | C23: Green = Trucking | D23: =COUNTIF(B30:B314,43) -> 48 | E23: =SUMIF(B29:B314,"43",C29:C314) -> 64254556.85 | F23: =E23/C5 -> 0.1242346391
A24: Red = Prime Contractor | C24: Blue = Supplier | D24: =COUNTIF(B30:B314,33) -> 46 | E24: =SUMIF(B29:B314,"33",C29:C314) -> 152525031.4 | F24: =E24/C5 -> 0.294903477
A25: Red Italic = DBE firm as Prime | C25: White = Other | D25: =COUNTIF(B30:B314,-4142) -> 161 | E25: =C5-(E23+E24) -> 300423643.6 | F25: =E25/C5 -> 0.5808618839
A26: BOLD = women
A27: * = Used both as Trucking & Supplier
A29: Hispanic American | B29: Column1 | C29: Dollars | D29: M/F | E29: # of Contracts | F29: Contract # | G29: # of Primes | H29: Prime Name | I29: Districts
A30: 3P LANDSCAPING | B30: -4142 | C30: ='[1]Construction Worksheet'!G7 -> 13500 | D30: M | E30: 1 | F30: =FETCHCOMMENT(E30) -> 07-355204 | G30: 1 | H30: =FETCHCOMMENT(G30) -> GRANITE CONSTRUCTION COMPANY | I30: 7
A31: 1 PASS SWEEPING, INC. | B31: 43 | C31: ='[1]Construction Worksheet'!G14 -> 331500 | D31: M | E31: 3 | F31: =FETCHCOMMENT(E31) -> 12-0K91U4 07-348204 12-0R3114 | G31: 3 | H31: =FETCHCOMMENT(G31) -> GRANITE CONSTRUCTION COMPANY BOSCO CONSTRUCTORS, INC. BEADOR CONSTRUCTION COMPANY, INC. | I31: 7,12
A32: A STAR SWEEPING | B32: -4142 | C32: ='[1]Construction Worksheet'!G20 -> 17200 | D32: M | E32: 1 | F32: =FETCHCOMMENT(E32) -> 04-0Q2004 | G32: 1 | H32: =FETCHCOMMENT(G32) -> GHILOTTI BROS., INC. | I32: 4
A33: A&M CONSULTING ENGINEERS | B33: -4142 | C33: ='[1]Construction Worksheet'!G37 -> 226800 | D33: M | E33: 12 | F33: =FETCHCOMMENT(E33) -> 08-1J6104 04-0K6404 04-2K7404 03-3H8304 04-2Q8004 05-1H6504 04-0K8004 05-1J8604 07-347904 07-351704 12-0R3114 10-1H7004 | G33: 12 | H33: =FETCHCOMMENT(G33) -> FBD VANGUARD CONSTRUCTION, INC. O.C. JONES & SONS INC BAY CITIES PAVING & GRADING PACIFIC INFRASTRUCTURE CONSTRUCTION, LLC GORDON N. BALL, INC. GRANITE CONSTRUCTION COMPANY GHILOTTI BROS INC PAPICH CONSTRUCTION COMPANY RASMUSSEN/VANGUARD C. A. RASMUSSEN, INC. BEADOR CONSTRUCTION COMPANY, INC. GEORGE REED, INC. | I33: 3,4,5,7,8,10,12
A34: ABSL CONSTRUCTION | B34: -4142 | C34: ='[1]Construction Worksheet'!G72 -> 3860936.47 | D34: M | E34: 27 | F34: =FETCHCOMMENT(E34) -> 03-4H8704 05-1J7804 02-3H6904 04-2Q6104 07-333604 10-0Q2104 01-0F7104 04-0P9204 04-2K7404 04-3J2604 05-1H6504 06-487404 10-1L2804 04-0K8004 04-2Q5504 07-346804 09-374704 10-1L8704 06-0Y1704 07-347904 05-1N3404 01-0K8904 04-2K3604 10-1H7004 04-0AA624 04-0Q1304 04-2Q5204 | G34: 15 | H34: =FETCHCOMMENT(G34) -> O.C. JONES & SONS INC CALPORTLAND CONSTRUCTION DIG IT CONSTRUCTION, INC. GRANITE ROCK COMPANY SULLY-MILLER CONTRACTING COMPANY BAY CITIES PAVING & GRADING, INC. GHILOTTI CONSTRUCTION COMPANY INC MYERS & SONS CONSTRUCGTION LLC GHILOTTI BROS INC TORO ENTERPRISES INC PAPICH CONSTRUCTION COMPANY RASMUSSEN/VANGUARD SOUZA ENGINEERING CONTRACTING, INC. DBA SOUZA CONSTRUCTION GRANITE CONSTRUCTION COMPANY GEORGE REED, INC. | I34: 1,2,3,4,5,6,7,9,10
A35: ADVANTAGE DEMOLITION & GRADING, INC. | B35: -4142 | C35: ='[1]Construction Worksheet'!G77 -> 450000 | D35: M | E35: 1 | F35: =FETCHCOMMENT(E35) -> 06-487404 | G35: 1 | H35: =FETCHCOMMENT(G35) -> GRANITE CONSTRUCTION COMPANY | I35: 6
A36: ALCORN FENCE COMPANY | B36: -4142 | C36: ='[1]Construction Worksheet'!G88 -> 3181096.15 | D36: M | E36: 6 | F36: =FETCHCOMMENT(E36) -> 08-1J6104 12-0R32U4 05-1J8604 07-348204 07-346304 07-355204 | G36: 6 | H36: =FETCHCOMMENT(G36) -> FBD VANGUARD CONSTRUCTION, INC. R.J. NOBLE COMPANY PAPICH CONSTRUCTION COMPANY, INC. BOSCO CONSTRUCTORS, INC. CHUMO CONSTRUCTION, INC. GRANITE CONSTRUCTION COMPANY | I36: 5,7,8,12
A37: ALEXIS TRUCKING | B37: -4142 | C37: ='[1]Construction Worksheet'!C8 -> 116160 | D37: F | E37: 1 | F37: =FETCHCOMMENT(E37) -> 08-1M0404 | G37: 1 | H37: =FETCHCOMMENT(G37) -> INTERSTATE CIVIL CONSTRUCTION | I37: 8
A38: ARIBISO TRANSPORTATION INC | B38: 43 | C38: ='[1]Construction Worksheet'!G102 -> 742000 | D38: M | E38: 1 | F38: =FETCHCOMMENT(E38) -> 02-0J8504 | G38: 1 | H38: =FETCHCOMMENT(G38) -> TULLIS INC | I38: 2
A39: ATHENA TRUCKING | B39: 43 | C39: ='[1]Construction Worksheet'!G94 -> 200000 | D39: M | E39: 1 | F39: =FETCHCOMMENT(E39) -> 12-0K91U4 | G39: 1 | H39: =FETCHCOMMENT(G39) -> GRANITE CONSTRUCTION COMPANY | I39: 12
A40: AUSTIN ENTERPRISE | B40: -4142 | C40: ='[1]Construction Worksheet'!C36 -> 1547578.08 | D40: F | E40: 16 | F40: =FETCHCOMMENT(E40) -> 11-430384 05-1J7804 08-1J6104 04-2K7404 04-2Q8004 05-1K4504 05-1K6404 06-487404 12-0K91U4 08-1K6904 04-0K8004 04-2Q5504 07-347904 07-351704 08-1M7404 10-1H7004 | G40: 11 | H40: =FETCHCOMMENT(G40) -> HAZARD CONSTRUCTION ENGINEERING INC CALPORTLAND CONSTRUCTION FBD VANGUARD CONSTRUCTION, INC. BAY CITIES PAVING & GRADING, INC. GORDON N. BALL, INC. GRANITE CONSTRUCTION COMPANY GHILOTTI BROS INC RASMUSSEN/VANGUARD C. A. RASMUSSEN, INC. INTERSTATE CIVIL CONSTRUCTION GEORGE REED, INC. | I40: 4,5,6,7,8,10,11,12
A41: BAY LINE CUTTING & CORING | B41: -4142 | C41: ='[1]Construction Worksheet'!G117 -> 513089.78 | D41: M | E41: 4 | F41: =FETCHCOMMENT(E41) -> 05-1H6504 04-0Q2004 04-0Q1304 04-2Q5204 | G41: 4 | H41: =FETCHCOMMENT(G41) -> GRANITE CONSTRUCTION COMPANY GHILOTTI BROS., INC. O.C. JONES & SONS, INC. BAY CITIES PAVING & GRADING, INC. | I41: 4,5
A42: BCK CONSULTING | B42: -4142 | C42: ='[1]Construction Worksheet'!C41 -> 9000 | D42: F | E42: 1 | F42: =FETCHCOMMENT(E42) -> 01-0H6504 | G42: 1 | H42: =FETCHCOMMENT(G42) -> WAHLUND CONSTRUCTION, INC. | I42: 1
A43: BT TRUCKING, INC. | B43: 43 | C43: ='[1]Construction Worksheet'!G122 -> 627744 | D43: M | E43: 2 | F43: =FETCHCOMMENT(E43) -> 07-351704 07-369704 | G43: 1 | H43: =FETCHCOMMENT(G43) -> C. A. RASMUSSEN, INC. | I43: 7
A44: C&N REINFORCING INC | B44: -4142 | C44: ='[1]Construction Worksheet'!G128 -> 597355.96 | D44: M | E44: 4 | F44: =FETCHCOMMENT(E44) -> 04-2Q5504 04-0P9304 05-1G9504 05-1G9504 | G44: 3 | H44: =FETCHCOMMENT(G44) -> BAY CITIES PAVING & GRADING INC BUGLER CONSTRUCTION, INC. GORDON N BALL INC | I44: 4, 5
A45: CENTRAL COAST TRAFFIC SAFETY | B45: 33 | C45: ='[1]Construction Worksheet'!G137 -> 547549.3 | D45: M | E45: 4 | F45: =FETCHCOMMENT(E45) -> 05-1Q03U4 05-1J8604 05-1N3404 07-355204 | G45: 3 | H45: =FETCHCOMMENT(G45) -> PAPICH CONSTRUCTION COMPANY, INC. SOUZA ENGINEERING CONTRACTING, INC. DBA SOUZA CONSTRUCTION GRANITE CONSTRUCTION COMPANY | I45: 5,7
A46: CENTRAL VALLEY REINFORCING | B46: 33 | C46: ='[1]Construction Worksheet'!G144 -> 13350 | D46: M | E46: 1 | F46: =FETCHCOMMENT(E46) -> 05-1N3404 | G46: 1 | H46: =FETCHCOMMENT(G46) -> SOUZA ENGINEERING CONTRACTING, INC. DBA SOUZA CONSTRUCTION | I46: 5
A47: CHAVEZ TRUCKING | B47: 43 | C47: ='[1]Construction Worksheet'!C49 -> 2408174.64 | D47: F | E47: 5 | F47: =FETCHCOMMENT(E47) -> 04-2Q6104 04-2K7404 04-3J2604 04-2Q8004 04-2Q5204 | G47: 4 | H47: =FETCHCOMMENT(G47) -> GRANITE ROCK COMPANY BAY CITIES PAVING & GRADING, INC. O.C. JONES & SONS, INC. GORDON N. BALL, INC. | I47: 4
A48: COASTLINE COMMERCIAL SWEEPERS INC | B48: 43 | C48: ='[1]Construction Worksheet'!C56 -> 287910 | D48: F | E48: 2 | F48: =FETCHCOMMENT(E48) -> 07-332304 07-346804 | G48: 1 | H48: =FETCHCOMMENT(G48) -> TORO ENTERPRISES INC | I48: 7
A49: COVARRUBIAS TRAFFIC CONTROL | B49: -4142 | C49: ='[1]Construction Worksheet'!C66 -> 1002000 | D49: F | E49: 3 | F49: =FETCHCOMMENT(E49) -> 07-4X9704 08-1K4004 12-0R3114 | G49: 1 | H49: =FETCHCOMMENT(G49) -> BEADOR CONSTRUCTION COMPANY, INC. | I49: 7,8,12
A50: CUJO CONSTRUCTION INC | B50: 33 | C50: ='[1]Construction Worksheet'!C76 -> 262582 | D50: F | E50: 3 | F50: =FETCHCOMMENT(E50) -> 07-358404 12-0K91U4 12-0S8404 | G50: 2 | H50: =FETCHCOMMENT(G50) -> YAKAR GRANITE CONSTRUCTION COMPANY BAKER ELECTRIC & RENEWABLES, LLC | I50: 7,12
A51: D.B. ELECTRIC INC | B51: -4142 | C51: ='[1]Construction Worksheet'!G159 -> 11966757 | D51: M | E51: 4 | F51: =FETCHCOMMENT(E51) -> 08-1J3004 12-0R3114 08-1J5404 08-1C07U4 | G51: 4 | H51: =FETCHCOMMENT(G51) -> SULLY-MILLER CONTRACTING COMPANY BEADOR CONSTRUCTION COMPANY, INC. FLATIRON WEST GRIFFITH COMPANY | I51: 8,12
A52: D.C. DRILLING INC | B52: -4142 | C52: ='[1]Construction Worksheet'!G165 -> 10770.94 | D52: M | E52: 1 | F52: =FETCHCOMMENT(E52) -> 12-0S8404 | G52: 1 | H52: =FETCHCOMMENT(G52) -> BAKER ELECTRIC & RENEWABLES, LLC | I52: 12
A53: DC TRAFFIC CONTROL | B53: -4142 | C53: ='[1]Construction Worksheet'!G176 -> 615060 | D53: M | E53: 2 | F53: =FETCHCOMMENT(E53) -> 06-487404 07-348204 | G53: 2 | H53: =FETCHCOMMENT(G53) -> GRANITE CONSTRUCTION COMPANY BOSCO CONSTRUCTORS, INC. | I53: 6,7
A54: DELTA BAY CONSULTANTS LLC | B54: -4142 | C54: ='[1]Construction Worksheet'!G194 -> 20000 | D54: M | E54: 13 | F54: =FETCHCOMMENT(E54) -> 03-4H8704 01-0F7104 02-0K6404 01-0H6404 05-1H6504 05-1K6404 04-4G7804 07-347904 12-0K8704 01-0K8904 02-2J2204 01-0H6504 03-3J9004 | G54: 9 | H54: =FETCHCOMMENT(G54) -> O.C. JONES & SONS INC GHILOTTI CONSTRUCTION COMPANY MCCUEN CONSTRUCTION RASMUSSEN/VANGUARD ORTIZ ENTERPRISES INC GRANITE CONSTRUCTION COMPANY HIGHWAY SPECIALTY COMPANY INC WAHLUND CONSTRUCTION, INC. PACIFIC INFRASTRUCTURE INC | I54: 1,2,3,4,7,12
A55: DESIGN BUILD ENGINEERING | B55: -4142 | C55: ='[1]Construction Worksheet'!G204 -> 3264640.1 | D55: M | E55: 7 | F55: =FETCHCOMMENT(E55) -> 07-348404 07-356504 12-0K91U4 12-0R57U4 07-370404 07-347904 07-369704 | G55: 6 | H55: =FETCHCOMMENT(G55) -> ACCU CONSTRUCTION, INC. GRANITE CONSTRUCTION COMPANY SECURITY PAVING COMPANY, INC. GRIFFITH COMPANY RASMUSSEN/VANGUARD C. A. RASMUSSEN, INC. | I55: 7,12
A56: DIRT DYNASTY, INC. | B56: -4142 | C56: ='[1]Construction Worksheet'!G230 -> 10200 | D56: M | E56: 1 | F56: =FETCHCOMMENT(E56) -> 10-1H7004 | G56: 1 | H56: =FETCHCOMMENT(G56) -> GEORGE REED, INC. | I56: 10
A57: DON MAHAFFEY DRILLING | B57: -4142 | C57: ='[1]Construction Worksheet'!C82 -> 201426.4 | D57: F | E57: 1 | F57: =FETCHCOMMENT(E57) -> 12-0K8704 | G57: 1 | H57: =FETCHCOMMENT(G57) -> ORTIZ ENTERPRISES INC | I57: 12
A58: DRAGON MATERIAL TRANSPORT | B58: 33 | C58: ='[1]Construction Worksheet'!C93 -> 1778259.97 | D58: F | E58: 5 | F58: =FETCHCOMMENT(E58) -> 05-1H6504 06-487404 04-0K8004 04-4G7804 02-0J8504 | G58: 4 | H58: =FETCHCOMMENT(G58) -> GRANITE CONSTRUCTION COMPANY GHILOTTI BROS INC O.C. JONES & SONS, INC. TULLIS INC | I58: 2,4,5,6
A59: DRS REBAR INC | B59: -4142 | C59: ='[1]Construction Worksheet'!G224 -> 1663402.35 | D59: M | E59: 10 | F59: =FETCHCOMMENT(E59) -> 11-430384 08-1J7204 12-0R3154 07-370404 12-0R32U4 07-347904 12-0R3114 12-OK8704 08-1J5404 08-1J3104 | G59: 9 | H59: =FETCHCOMMENT(G59) -> HAZARD CONSTRUCTION ENGR, LLC SULLY-MILLER CONTRACTING COMPANY POWELL CONSTRUCTORS, INC. GRIFFITH COMPANY R.J. NOBLE COMPANY RASMUSSEN/VANGUARD BEADOR CONSTRUCTION COMPANY, INC. ORTIZ ENTERPRISES INC INTERSTATE CIVIL CONSTRUCTION | I59: 7,8,11,12
A60: EIGHTEEN TRUCKING | B60: 43 | C60: ='[1]Construction Worksheet'!C98 -> 465000 | D60: F | E60: 1 | F60: =FETCHCOMMENT(E60) -> 04-2Q8004 | G60: 1 | H60: =FETCHCOMMENT(G60) -> GORDON N. BALL, INC. | I60: 4
A61: ENDEMIC ENVIRONMENTAL SERVICES | B61: -4142 | C61: ='[1]Construction Worksheet'!G249 -> 1259945 | D61: M | E61: 11 | F61: =FETCHCOMMENT(E61) -> 03-0J01U4 05-1J7804 12-0R3134 01-0F7104 03-3H8304 08-1J2704 12-0R57U4 08-1K6904 06-0W79U4 01-0H6504 03-0J5604 | G61: 9 | H61: =FETCHCOMMENT(G61) -> MERCER-FRASER COMPANY CALPORTLAND CONSTRUCTION PETERSON-CHASE GENERAL ENGINEERING CONSTRUCTION, INC. GHILOTTI CONSTRUCTION COMPANY PACIFIC INFRASTRUCTURE CONSTRUCTION, LLC SULLY-MILLER CONTRACTING COMPANY SECURITY PAVING COMPANY, INC. GRANITE CONSTRUCTION COMPANY WAHLUND CONSTRUCTION, INC. | I61: 1,3,5,6,8,12
A62: FLASH TRAFFIC INC | B62: -4142 | C62: ='[1]Construction Worksheet'!C106 -> 84180 | D62: F | E62: 2 | F62: =FETCHCOMMENT(E62) -> 07-332304 07-355204 | G62: 2 | H62: =FETCHCOMMENT(G62) -> TORO ENTERPRISES GRANITE CONSTRUCTION COMPANY | I62: 7
A63: FORTE ENGINEERING | B63: -4142 | C63: ='[1]Construction Worksheet'!C111 -> 3808431.4 | D63: F | E63: 2 | F63: =FETCHCOMMENT(E63) -> 07-347904 07-346504 | G63: 2 | H63: =FETCHCOMMENT(G63) -> RASMUSSEN/VANGUARD SECURITY PAVING COMPANY, INC. | I63: 7
A64: FRONTLINE TRAFFIC CONTROL | B64: -4142 | C64: ='[1]Construction Worksheet'!G270 -> 276765 | D64: M | E64: 2 | F64: =FETCHCOMMENT(E64) -> 07-358404 07-348504 | G64: 1 | H64: =FETCHCOMMENT(G64) -> YAKAR | I64: 7
A65: FULL TRAFFIC MAINTENANCE, INC. | B65: -4142 | C65: ='[1]Construction Worksheet'!G279 -> 740931 | D65: M | E65: 3 | F65: =FETCHCOMMENT(E65) -> 07-351704 12-0K8704 12-0S8404 | G65: 2 | H65: =FETCHCOMMENT(G65) -> C. A. RASMUSSEN, INC. ORTIZ ENTERPRISES INC BAKER ELECTRIC & RENEWABLES, LLC | I65: 7,12
A66: G&F CONCRETE CUTTING | B66: -4142 | C66: ='[1]Construction Worksheet'!C119 -> 1593133.7 | D66: F | E66: 4 | F66: =FETCHCOMMENT(E66) -> 12-0R57U4 12-0R3114 08-0G8504 08-1J5404 | G66: 4 | H66: =FETCHCOMMENT(G66) -> SECURITY PAVING COMPANY, INC. BEADOR CONSTRUCTION COMPANY, INC. GRANITE CONSTRUCTION COMPANY FLATIRON WEST INC | I66: 8,12
A67: G&G ELECTRIC | B67: -4142 | C67: ='[1]Construction Worksheet'!G285 -> 5379795 | D67: M | E67: 1 | F67: =FETCHCOMMENT(E67) -> 12-0R3154 | G67: 1 | H67: =FETCHCOMMENT(G67) -> POWELL CONSTRUCTORS, INC. | I67: 12
A68: GALVAN REINFORCING COMPANY | B68: -4142 | C68: ='[1]Construction Worksheet'!G290 -> 303761.8 | D68: M | E68: 2 | F68: =FETCHCOMMENT(E68) -> 07-350314 07-346504 | G68: 2 | H68: =FETCHCOMMENT(G68) -> CROSSTOWN ELECTRICAL & DATA, INC. SECURITY PAVING COMPANY, INC. | I68: 7
A69: GEO-STRUCTURAL ENGINEERING | B69: -4142 | C69: ='[1]Construction Worksheet'!G296 -> 864254 | D69: M | E69: 2 | F69: =FETCHCOMMENT(E69) -> 07-4X9704 05-1G9504 | G69: 2 | H69: =FETCHCOMMENT(G69) -> BEADOR CONSTRUCTION COMPANY, INC. GORDON N BALL | I69: 5,7
A70: GLJ CONSTRUCTION | B70: -4142 | C70: ='[1]Construction Worksheet'!G302 -> 1124000 | D70: M | E70: 1 | F70: =FETCHCOMMENT(E70) -> 01-0H6504 | G70: 1 | H70: =FETCHCOMMENT(G70) -> WAHLUND CONSTRUCTION, INC. | I70: 1
A71: G.O. RODRIGUEZ TRUCKING | B71: 43 | C71: ='[1]Construction Worksheet'!G308 -> 15120 | D71: M | E71: 1 | F71: =FETCHCOMMENT(E71) -> 07-4X9704 | G71: 1 | H71: =FETCHCOMMENT(G71) -> BEADOR CONSTRUCTION COMPANY, INC. | I71: 7
A72: GOLDEN BAY FENCE PLUS IRON | B72: 33 | C72: ='[1]Construction Worksheet'!G319 -> 1235267.74 | D72: M | E72: 6 | F72: =FETCHCOMMENT(E72) -> 04-3J2604 05-1H6504 04-0K8004 07-332304 05-1G9504 04-2Q5204 | G72: 6 | H72: =FETCHCOMMENT(G72) -> O.C. JONES & SONS, INC. GRANITE CONSTRUCTION COMPANY GHILOTTI BROS INC TORO ENTERPRISES INC GORDON N BALL INC BAY CITIES PAVING & GRADING, INC. | I72: 4,5,7
A73: GREENCOAST LANDSCAPE, INC. | B73: -4142 | C73: ='[1]Construction Worksheet'!C128 -> 2185596 | D73: F | E73: 5 | F73: =FETCHCOMMENT(E73) -> 05-1K4504 05-1J8604 07-347904 07-351704 07-360704 | G73: 4 | H73: =FETCHCOMMENT(G73) -> CALPORTLAND CONSTRUCTION PAPICH CONSTRUCTION COMPANY, INC. RASMUSSEN/VANGUARD C. A. RASMUSSEN, INC. | I73: 5,7
A74: H&G CONSTRUCTION | B74: -4142 | C74: ='[1]Construction Worksheet'!G325 -> 985978.8 | D74: M | E74: 2 | F74: =FETCHCOMMENT(E74) -> 04-2Q5504 04-0Q1304 | G74: 2 | H74: =FETCHCOMMENT(G74) -> BAY CITIES PAVING & GRADING INC O.C. JONES & SONS, INC. | I74: 4
A75: HIGH LIGHT ELECTRIC, INC. | B75: -4142 | C75: ='[1]Construction Worksheet'!G347 -> 17488927.6 | D75: M | E75: 8 | F75: =FETCHCOMMENT(E75) -> 12-0R3134 11-056404 08-1K4004 12-0K91U4 09-374704 09-379104 06-0W79U4 06-1F1804 | G75: 8 | H75: =FETCHCOMMENT(G75) -> PETERSON-CHASE GENERAL ENGINEERING CONSTRUCTION, INC. HAZARD CONSTRUCTION COMPANY BEADOR CONSTRUCTION COMPANY, INC. GRANITE CONSTRUCTION COMPANY PAPICH CONSTRUCTION COMPANY INC ROAD AND HIGHWAY BUILDERS LLC SECURITY PAVING COMPANY, INC. GRIFFITH COMPANY | I75: 6,8,9,11,12
A76: IN-LINE FENCE & RAILING | B76: -4142 | C76: ='[1]Construction Worksheet'!G353 -> 474725 | D76: M | E76: 1 | F76: =FETCHCOMMENT(E76) -> 12-0K91U4 | G76: 1 | H76: =FETCHCOMMENT(G76) -> GRANITE CONSTRUCTION COMPANY | I76: 12
A77: INLAND GARDENS AND TROPICS | B77: -4142 | C77: ='[1]Construction Worksheet'!C133 -> 118287.73 | D77: F | E77: 1 | F77: =FETCHCOMMENT(E77) -> 08-1K4004 | G77: 1 | H77: =FETCHCOMMENT(G77) -> BEADOR CONSTRUCTION COMPANY, INC. | I77: 8
A78: J. PEREZ TRANSPORT | B78: 43 | C78: ='[1]Construction Worksheet'!G359 -> 1174250 | D78: M | E78: 1 | F78: =FETCHCOMMENT(E78) -> 09-379104 | G78: 1 | H78: =FETCHCOMMENT(G78) -> ROAD AND HIGHWAY BUILDERS | I78: 9
A79: JEFFERSON STATE HIGHWAYS INC | B79: -4142 | C79: ='[1]Construction Worksheet'!G388 -> 5285968.33 | D79: M | E79: 22 | F79: =FETCHCOMMENT(E79) -> 03-4H8704 03-0J01U4 02-3H6904 01-0F7104 01-0J8904 02-0K6404 02-4H03U4 02-1J75U4 02-4H0104 02-4H0704 03-3H8304 04-2Q8004 04-2Q5504 04-2Q6504 07-347904 07-369704 09-366804 01-0K8904 04-2K3604 05-1G9504 03-0J5604 04-2Q5204 | G79: 14 | H79: =FETCHCOMMENT(G79) -> O.C. JONES & SONS INC MERCER-FRASER COMPANY JEFFERSON STATE HIGHWAYS, INC. GHILOTTI CONSTRUCTION COMPANY INC MCCUEN CONSTRUCTION INC HAT CREEK CONSTRUCTION MATERIALS PACIFIC INFRASTRUCTURE CONSTRUCTION, LLC GORDON N. BALL, INC. BAY CITIES PAVING & GRADING INC RASMUSSEN/VANGUARD C. A. RASMUSSEN, INC. PAPICH CONSTRUCTION COMPANY GRANITE CONSTRUCTION COMPANY GHILOTTI BROS., INC. | I79: 1,2,3,4,7,9
A80: JFL ELECTRIC | B80: -4142 | C80: ='[1]Construction Worksheet'!G398 -> 26008815 | D80: M | E80: 6 | F80: =FETCHCOMMENT(E80) -> 08-1K6904 07-332304 07-346804 12-0R32U4 07-348204 07-350324 | G80: 5 | H80: =FETCHCOMMENT(G80) -> GRANITE CONSTRUCTION COMPANY TORO ENTERPRISES INC R.J. NOBLE COMPANY BOSCO CONSTRUCTORS, INC. JFL ELECTRIC, INC. | I80: 7,8,12
A81: JUNIOR SWEEPING COMPANY LLC | B81: 43 | C81: ='[1]Construction Worksheet'!G406 -> 117720 | D81: M | E81: 3 | F81: =FETCHCOMMENT(E81) -> 01-0F7104 05-1K6404 10-1H7004 | G81: 3 | H81: =FETCHCOMMENT(G81) -> GHILOTTI CONSTRUCTION COMPANY, INC. GRANITE CONSTRUCTION COMPANY GEORGE REED, INC. | I81: 1,5,10
A82: LA FIRMA INC | B82: -4142 | C82: ='[1]Construction Worksheet'!G418 -> 3750 | D82: M | E82: 1 | F82: =FETCHCOMMENT(E82) -> 07-370404 | G82: 1 | H82: =FETCHCOMMENT(G82) -> GRIFFITH COMPANY | I82: 7
A83: LA STEEL SERVICES, INC. | B83: -4142 | C83: ='[1]Construction Worksheet'!G424 -> 658838.2 | D83: M | E83: 2 | F83: =FETCHCOMMENT(E83) -> 08-1K6904 08-0G8504 | G83: 1 | H83: =FETCHCOMMENT(G83) -> GRANITE CONSTRUCTION COMPANY | I83: 8
A84: LASER BRIDGE INDUSTRIAL | B84: 33 | C84: ='[1]Construction Worksheet'!G433 -> 60070.51 | D84: M | E84: 1 | F84: =FETCHCOMMENT(E84) -> 12-0K8704 | G84: 1 | H84: =FETCHCOMMENT(G84) -> ORTIZ ENTERPRISES INC | I84: 12
A85: LIZ TRANSPORT | B85: 43 | C85: ='[1]Construction Worksheet'!C139 -> 313556 | D85: F | E85: 1 | F85: =FETCHCOMMENT(E85) -> 07-348204 | G85: 1 | H85: =FETCHCOMMENT(G85) -> BOSCO CONSTRUCTORS, INC. | I85: 7
A86: LOGISTICAL ENTERPRISES | B86: 33 | C86: ='[1]Construction Worksheet'!C152 -> 1789650.96 | D86: F | E86: 9 | F86: =FETCHCOMMENT(E86) -> 03-4H8704 03-0J01U4 04-0K1004 12-0S1404 04-3J2604 04-0K8004 07-348204 10-1H7004 04-1W0904 | G86: 8 | H86: =FETCHCOMMENT(G86) -> O.C. JONES & SONS INC MERCER-FRASER COMPANY MIKE BROWN ELECTRIC CO. CHUMO CONSTRUCTION INC GHILOTTI BROS INC BOSCO CONSTRUCTORS, INC. GEORGE REED, INC. CROSSTOWN ELECTRICAL & DATA, INC. | I86: 3,4,10,12
A87: LONE STAR LANDSCAPE | B87: -4142 | C87: ='[1]Construction Worksheet'!G448 -> 1927725 | D87: M | E87: 10 | F87: =FETCHCOMMENT(E87) -> 04-0P9204 04-0P7604 05-1H6504 05-1K6404 04-0K8004 04-3Q8504 04-4G7804 04-0Q2004 05-1G9504 04-1W0904 | G87: 8 | H87: =FETCHCOMMENT(G87) -> MYERS & SONS CONSTRUCTION, LLC. ST. FRANCIS ELECTRIC, LLC. GRANITE CONSTRUCTION COMPANY GHILOTTI BROS INC TENNYSON ELECTRIC INC O.C. JONES & SONS, INC. GORDON N BALL INC CROSSTOWN ELECTRICAL & DATA, INC. | I87: 4,5
A88: LOS MORALES TRUCKING, INC. | B88: 43 | C88: ='[1]Construction Worksheet'!G458 -> 594300 | D88: M | E88: 3 | F88: =FETCHCOMMENT(E88) -> 08-1K4004 08-1M7404 08-1J3104 | G88: 2 | H88: =FETCHCOMMENT(G88) -> BEADOR CONSTRUCTION COMPANY, INC. INTERSTATE CIVIL CONSTRUCTION | I88: 8
A89: M&S ENVIRONMENTAL | B89: 33 | C89: ='[1]Construction Worksheet'!G471 -> 3024216.45 | D89: M | E89: 6 | F89: =FETCHCOMMENT(E89) -> 02-3H6904 01-0J8904 02-0K6404 01-0J2104 01-0H6504 02-0J8504 | G89: 5 | H89: =FETCHCOMMENT(G89) -> DIG IT CONSTRUCTION, INC. MERCER FRASER COMPANY MCCUEN CONSTRUCTION WAHLUND CONSTRUCTION, INC. TULLIS INC | I89: 1,2
A90: MADERA CONCRETE COMPANY | B90: -4142 | C90: ='[1]Construction Worksheet'!G477 -> 333786 | D90: M | E90: 2 | F90: =FETCHCOMMENT(E90) -> 06-487404 10-1L8704 | G90: 1 | H90: =FETCHCOMMENT(G90) -> GRANITE CONSTRUCTION COMPANY | I90: 6,10
A91: MANERI TRAFFIC CONTROL | B91: 33 | C91: ='[1]Construction Worksheet'!C190 -> 37342451.22 | D91: F | E91: 28 | F91: =FETCHCOMMENT(E91) -> 11-430384 12-0S1404 07-333604 08-1J6104 07-358404 08-1J3004 08-1J2704 08-1J7204 08-1K4004 12-0R3154 12-0R57U4 12-0S7004 08-1K6904 07-370404 12-0R32U4 07-347904 07-350314 07-350334 07-351704 08-1J4504 07-346304 07-369704 08-0G8504 12-0K8704 12-0U9104 07-346504 08-1C07U4 | G91: 17 | H91: =FETCHCOMMENT(G91) -> HAZARD CONSTRUCTION ENGR, LLC CHUMO CONSTRUCTION INC SULLY-MILLER CONTRACTING COMPANY FBD VANGUARD CONSTRUCTION, INC. YAKAR BEADOR CONSTRUCTION COMPANY, INC. POWELL CONSTRUCTORS, INC. SECURITY PAVING COMPANY, INC. AUTOBAHN CONSTRUCTION, INC. GRANITE CONSTRUCTION COMPANY GRIFFITH COMPANY R.J. NOBLE COMPANY RASMUSSEN/VANGUARD C. A. RASMUSSEN, INC. CROSSTOWN ELECTRICAL & DATA, INC. ALL AMERICAN ASPHALT ORTIZ ENTERPRISES INC | I91: 7,8,11,12
A92: MAVERICK SWEEPING | B92: 43 | C92: ='[1]Construction Worksheet'!C198 -> 275744 | D92: F | E92: 3 | F92: =FETCHCOMMENT(E92) -> 08-1K4004 07-354704 12-0K8704 | G92: 3 | H92: =FETCHCOMMENT(G92) -> BEADOR CONSTRUCTION COMPANY, INC. CERTIFIED COATING COMPANY ORTIZ ENTERPRISES INC | I92: 7,8,12
A93: MESA TRAFFIC SERVICES | B93: -4142 | C93: ='[1]Construction Worksheet'!G482 -> 123250 | D93: M | E93: 1 | F93: =FETCHCOMMENT(E93) -> 07-351704 | G93: 1 | H93: =FETCHCOMMENT(G93) -> C. A. RASMUSSEN, INC. | I93: 7
A94: MONZON & SON ENTERPRISES INC | B94: 43 | C94: ='[1]Construction Worksheet'!G505 -> 15278262.65 | D94: M | E94: 13 | F94: =FETCHCOMMENT(E94) -> 11-430384 12-0S1404 07-333604 08-1J6104 12-0R3134 08-1J2704 08-1J7204 12-0R57U4 07-347904 12-0R3114 12-0K8704 07-346304 07-346504 | G94: 9 | H94: =FETCHCOMMENT(G94) -> HAZARD CONSTRUCTION ENGR, LLC CHUMO CONSTRUCTION INC SULLY-MILLER CONTRACTING COMPANY FBD VANGUARD CONSTRUCTION, INC. PETERSON-CHASE GENERAL ENGINEERING CONSTRUCTION, INC. SECURITY PAVING COMPANY, INC. RASMUSSEN/VANGUARD BEADOR CONSTRUCTION COMPANY, INC. ORTIZ ENTERPRISES INC | I94: 7,8,11,12
A95: MORAN CONSULTING | B95: -4142 | C95: ='[1]Construction Worksheet'!G511 -> 94640 | D95: M | E95: 1 | F95: =FETCHCOMMENT(E95) -> 07-333604 | G95: 1 | H95: =FETCHCOMMENT(G95) -> SULLY-MILLER CONTRACTING COMPANY | I95: 7
A96: NOLD'S EQUIPMENT | B96: 33 | C96: ='[1]Construction Worksheet'!C206 -> 362808 | D96: F | E96: 2 | F96: =FETCHCOMMENT(E96) -> 07-333604 07-358404 | G96: 2 | H96: =FETCHCOMMENT(G96) -> SULLY-MILLER CONTRACTING COMPANY YAKAR | I96: 7
A97: PRECISION GRADE, INC. | B97: -4142 | C97: ='[1]Construction Worksheet'!G517 -> 3996411 | D97: M | E97: 1 | F97: =FETCHCOMMENT(E97) -> 05-1H6914 | G97: 1 | H97: =FETCHCOMMENT(G97) -> PRECISION GRADE, INC. | I97: 5
A98: POLO ENGINEERING, INC. | B98: -4142 | C98: ='[1]Construction Worksheet'!C213 -> 673013 | D98: F | E98: 1 | F98: =FETCHCOMMENT(E98) -> 07-4P8504 | G98: 1 | H98: =FETCHCOMMENT(G98) -> POLO ENGINEERING, INC. | I98: 7
A99: PRE-CON PRODUCTS, LTD. | B99: -4142 | C99: ='[1]Construction Worksheet'!G525 -> 658576.66 | D99: M | E99: 5 | F99: =FETCHCOMMENT(E99) -> 08-1K4004 07-346804 07-370404 12-0R3114 07-369704 | G99: 4 | H99: =FETCHCOMMENT(G99) -> BEADOR CONSTRUCTION COMPANY, INC. TORO ENTERPRISES INC GRIFFITH COMPANY C. A. RASMUSSEN, INC. | I99: 7,8,12
A100: PREMIER SIGN SERVICE INC | B100: -4142 | C100: 11302433.04 | D100: M | E100: 6 | F100: =FETCHCOMMENT(E100) -> 12-0R32U4 07-347904 07-348204 12-0K8704 08-1J5404 06-0U2904 | G100: 6 | H100: =FETCHCOMMENT(G100) -> R.J. NOBLE COMPANY RASMUSSEN/VANGUARD BOSCO CONSTRUCTORS, INC. ORTIZ ENTERPRISES INC FLATIRON WEST, INC. GRIFFITH COMPANY | I100: 6,8,12
A101: PREMIER VALLEY TRANSPORT INC | B101: 43 | C101: ='[1]Construction Worksheet'!G548 -> 2214250 | D101: M | E101: 4 | F101: =FETCHCOMMENT(E101) -> 05-1Q03U4 09-374704 05-1J8604 06-0Y1704 | G101: 1 | H101: =FETCHCOMMENT(G101) -> PAPICH CONSTRUCTION COMPANY, INC. | I101: 5,6,9
A102: PTM GENERAL ENGINEERING | B102: -4142 | C102: ='[1]Construction Worksheet'!C220 -> 1264843 | D102: F | E102: 3 | F102: =FETCHCOMMENT(E102) -> 07-4P8504 05-1K5104 12-0U9204 | G102: 2 | H102: =FETCHCOMMENT(G102) -> PTM GENERAL ENGINEERING SERVICES, INC. CENTRAL COAST FINANCIAL GROUP, INC. DBA CCFG CONSTRUCTION | I102: 5,7,12
A103: QA CONSTRUCTORS | B103: -4142 | C103: ='[1]Construction Worksheet'!G556 -> 1585280 | D103: M | E103: 3 | F103: =FETCHCOMMENT(E103) -> 04-0P9204 04-0P7604 04-0P9304 | G103: 3 | H103: =FETCHCOMMENT(G103) -> MYERS & SONS CONSTRUCTION, LLC. ST. FRANCIS ELECTRIC, LLC. BUGLER CONSTRUCTION, INC. | I103: 4
A104: QUALITY TRAFFIC CONTROL | B104: -4142 | C104: ='[1]Construction Worksheet'!G567 -> 1221070.5 | D104: M | E104: 5 | F104: =FETCHCOMMENT(E104) -> 11-056404 12-0K91U4 07-354704 12-0R3114 11-430194 | G104: 4 | H104: =FETCHCOMMENT(G104) -> HAZARD CONSTRUCTION ENGR, LLC GRANITE CONSTRUCTION COMPANY CERTIFIED COATINGS COMPANY BEADOR CONSTRUCTION COMPANY, INC. | I104: 7,11,12
A105: QUIMU CONTRACTING, INC. | B105: -4142 | C105: ='[1]Construction Worksheet'!G571 -> 386080 | D105: M | E105: 1 | F105: =FETCHCOMMENT(E105) -> 03-3J9104 | G105: 1 | H105: =FETCHCOMMENT(G105) -> QUIMU CONTRACTING, INC. | I105: 3
A106: RAC CONSTRUCTION | B106: -4142 | C106: ='[1]Construction Worksheet'!G578 -> 119167.5 | D106: M | E106: 1 | F106: =FETCHCOMMENT(E106) -> 11-430194 | G106: 1 | H106: =FETCHCOMMENT(G106) -> HAZARD CONSTRUCTION COMPANY DBA HAZARD CONSRUCTION ENGR LLC | I106: 11
A107: RANGEL BROTHERS TRUCKING | B107: 43 | C107: ='[1]Construction Worksheet'!G592 -> 1541400 | D107: M | E107: 1 | F107: =FETCHCOMMENT(E107) -> 07-370404 | G107: 1 | H107: =FETCHCOMMENT(G107) -> GRIFFITH COMPANY | I107: 7
A108: RE CHAFFEE CONSTRUCTION, INC. | B108: -4142 | C108: ='[1]Construction Worksheet'!G599 -> 690583 | D108: M | E108: 3 | F108: =FETCHCOMMENT(E108) -> 08-1M7404 08-1M0404 08-1J3104 | G108: 1 | H108: =FETCHCOMMENT(G108) -> INTERSTATE CIVIL CONSTRUCTION | I108: 8
A109: REYCON CONSTRUCTION | B109: -4142 | C109: ='[1]Construction Worksheet'!G608 -> 1314820 | D109: M | E109: 1 | F109: =FETCHCOMMENT(E109) -> 08-0G8504 | G109: 1 | H109: =FETCHCOMMENT(G109) -> GRANITE CONSTRUCTION COMPANY | I109: 8
A110: REYNAGA TRANSPORTATION | B110: 43 | C110: ='[1]Construction Worksheet'!G616 -> 2042160 | D110: M | E110: 3 | F110: =FETCHCOMMENT(E110) -> 07-333604 08-1J6104 07-347904 | G110: 3 | H110: =FETCHCOMMENT(G110) -> SULLY-MILLER CONTRACTING COMPANY FBD VANGUARD CONSTRUCTION, INC. RASMUSSEN/VANGUARD | I110: 7,8
A111: R.M.C. TRUCKING | B111: 43 | C111: ='[1]Construction Worksheet'!G622 -> 114500 | D111: M | E111: 1 | F111: =FETCHCOMMENT(E111) -> 08-1J7204 | G111: 1 | H111: =FETCHCOMMENT(G111) -> SULLY-MILLER CONTRACTING COMPANY | I111: 8
A112: ROBINSON SWEEPING INC | B112: 43 | C112: ='[1]Construction Worksheet'!C244 -> 385200 | D112: F | E112: 4 | F112: =FETCHCOMMENT(E112) -> 03-0J01U4 01-0J8904 01-0J2104 03-0J5604 | G112: 1 | H112: =FETCHCOMMENT(G112) -> MERCER-FRASER COMPANY | I112: 1,3
A113: RUPERT CONSTRUCTION SUPPLY | B113: 33 | C113: ='[1]Construction Worksheet'!G641 -> 1900693.35 | D113: M | E113: 14 | F113: =FETCHCOMMENT(E113) -> 11-430384 05-1J7804 08-1J6104 04-3J2604 01-0H6404 02-1J75U4 04-2Q8004 06-487404 08-1K4004 12-0K91U4 04-0K8004 09-374704 07-347904 05-1G9504 07-346104 | G113: 13 | H113: =FETCHCOMMENT(G113) -> HAZARD CONSTRUCTION ENGR, LLC CALPORTLAND CONSTRUCTION FBD VANGUARD CONSTRUCTION, INC. O.C. JONES AND SONS WYLATTI RESOURCE MANAGEMENT, INC. HAT CREEK CONSTRUCTION & MATERIALS, INC. GORDON N. BALL, INC. GRANITE CONSTRUCTION COMPANY BEADOR CONSTRUCTION COMPANY, INC. GHILOTTI BROS INC PAPICH CONSTRUCTION COMPANY INC RASMUSSEN/VANGUARD POWELL CONSTRUCTORS, INC. | I113: 1,2,4,5,6,7,8,9,11,12
A114: S&S TRUCKING | B114: 43 | C114: ='[1]Construction Worksheet'!G648 -> 1417802 | D114: M | E114: 3 | F114: =FETCHCOMMENT(E114) -> 04-3J2604 04-2Q5504 04-0G3604 | G114: 2 | H114: =FETCHCOMMENT(G114) -> O.C. JONES & SONS, INC. BAY CITIES PAVING & GRADING INC | I114: 4
A115: SAFEWAY SIGN COMPANY | B115: -4142 | C115: ='[1]Construction Worksheet'!G666 -> 2013626.22 | D115: M | E115: 11 | F115: =FETCHCOMMENT(E115) -> 11-430384 08-1K4004 12-0R3154 07-347904 08-1J4504 12-0R3114 07-346304 11-430194 02-2J2204 07-346504 02-0J8504 | G115: 7 | H115: =FETCHCOMMENT(G115) -> HAZARD CONSTRUCTION ENGR, LLC BEADOR CONSTRUCTION COMPANY, INC. POWELL CONSTRUCTORS, INC. CHUMO CONSTRUCTION, INC. HIGHWAY SPECIALTY COMPANY, INC. SECURITY PAVING COMPANY, INC. TULLIS INC | I115: 2,7,11
A116: SAWMAN CONCRETE CUTTING, INC. | B116: -4142 | C116: ='[1]Construction Worksheet'!G670 -> 688867.2 | D116: M | E116: 1 | F116: =FETCHCOMMENT(E116) -> 07-347904 | G116: 1 | H116: =FETCHCOMMENT(G116) -> RASMUSSEN/VANGUARD | I116: 7
A117: SHARPLINE SOLUTIONS, INC. | B117: -4142 | C117: ='[1]Construction Worksheet'!G674 -> 30415.09 | D117: M | E117: 1 | F117: =FETCHCOMMENT(E117) -> 07-351704 | G117: 1 | H117: =FETCHCOMMENT(G117) -> C. A. RASMUSSEN, INC. | I117: 7
A118: SHIELD RENTALS & SALES LLC | B118: -4142 | C118: ='[1]Construction Worksheet'!G680 -> 219300 | D118: M | E118: 2 | F118: =FETCHCOMMENT(E118) -> 04-2Q8004 04-0Q2004 | G118: 2 | H118: =FETCHCOMMENT(G118) -> GORDON N. BALL, INC. GHILOTTI BROS., INC. | I118: 4
A119: SOCAL WELDING | B119: -4142 | C119: ='[1]Construction Worksheet'!G684 -> 337930.25 | D119: M | E119: 1 | F119: =FETCHCOMMENT(E119) -> 04-2Q8004 | G119: 1 | H119: =FETCHCOMMENT(G119) -> GORDON N. BALL, INC. | I119: 4
A120: SWPPQUEEN | B120: -4142 | C120: ='[1]Construction Worksheet'!C252 -> 14425 | D120: F | E120: 1 | F120: =FETCHCOMMENT(E120) -> 04-0P7604 | G120: 1 | H120: =FETCHCOMMENT(G120) -> ST. FRANCIS ELECTRIC, LLC. | I120: 4
A121: TERRA WEST | B121: -4142 | C121: ='[1]Construction Worksheet'!G693 -> 6325 | D121: M | E121: 3 | F121: =FETCHCOMMENT(E121) -> 11-430384 11-056404 11-430194 | G121: 1 | H121: =FETCHCOMMENT(G121) -> HAZARD CONSTRUCTION ENGR, LLC | I121: 11
A122: TESORO CONSTRACTORS | B122: -4142 | C122: ='[1]Construction Worksheet'!G700 -> 1149665 | D122: M | E122: 2 | F122: =FETCHCOMMENT(E122) -> 11-430194 07-348504 | G122: 2 | H122: =FETCHCOMMENT(G122) -> HAZARD CONSTRUCTION COMPANY DBA HAZARD CONSRUCTION ENGR LLC YAKAR | I122: 7,11
A123: TOTAL BARRICADE SERVICE INC | B123: -4142 | C123: ='[1]Construction Worksheet'!G711 -> 647240 | D123: M | E123: 1 | F123: =FETCHCOMMENT(E123) -> 07-346804 | G123: 1 | H123: =FETCHCOMMENT(G123) -> TORO ENTERPRISES INC | I123: 7
A124: TOTAL SITE SUPPLY COMPANY | B124: 33 | C124: ='[1]Construction Worksheet'!G717 -> 35526.34 | D124: M | E124: 1 | F124: =FETCHCOMMENT(E124) -> 08-1K4004 | G124: 1 | H124: =FETCHCOMMENT(G124) -> BEADOR CONSTRUCTION COMPANY, INC. | I124: 8
A125: TR DIGITAL, INC. | B125: -4142 | C125: ='[1]Construction Worksheet'!G719 -> 100000 | D125: M | E125: 1 | F125: =FETCHCOMMENT(E125) -> 04-2Q8004 | G125: 1 | H125: =FETCHCOMMENT(G125) -> GORDON N. BALL, INC. | I125: 4
A126: TRANSPACIFIC STEEL LLC | B126: -4142 | C126: ='[1]Construction Worksheet'!G733 -> 5694292.82 | D126: M | E126: 6 | F126: =FETCHCOMMENT(E126) -> 05-1J7804 04-2Q8004 05-1K4504 06-487404 05-1J8604 06-0W79U4 | G126: 6 | H126: =FETCHCOMMENT(G126) -> CALPORTLAND CONSTRUCTION GORDON N. BALL, INC. GRANITE CONSTRUCTION COMPANY PAPICH CONSTRUCTION COMPANY, INC. FLATIRON WEST, INC. SECURITY PAVING COMPANY, INC. | I126: 5,6
A127: TREESMITH ENTERPRISES | B127: -4142 | C127: ='[1]Construction Worksheet'!C296 -> 858000 | D127: F | E127: 1 | F127: =FETCHCOMMENT(E127) -> 08-1K6904 | G127: 1 | H127: =FETCHCOMMENT(G127) -> GRANITE CONSTRUCTION COMPANY | I127: 8
A128: TULLY INC | B128: -4142 | C128: ='[1]Construction Worksheet'!C290 -> 627244.98 | D128: F | E128: 22 | F128: =FETCHCOMMENT(E128) -> 03-4H8704 04-1Q2004 10-0Q2104 01-0F7104 04-0K6404 04-3J2604 01-0H6404 03-3H8304 04-2Q8004 06-487404 10-1L2804 04-4G7804 04-0Q2004 01-0K8904 04-2K3604 10-1H7004 05-1G9504 02-2J2204 03-0J5604 01-0H6504 03-3J9004 06-0U2904 | G128: 15 | H128: =FETCHCOMMENT(G128) -> O.C. JONES & SONS INC COLUMBIA ELECTRIC, INC. BAY CITIES PAVING & GRADING, INC. GHILOTTI CONSTRUCTION COMPANY, INC. WYLATTI RESOURCE MANAGEMENT, INC. PACIFIC INFRASTRUCTURE CONSTRUCTION, LLC GORDON N. BALL, INC. GRANITE CONSTRUCTION COMPANY GHILOTTI BROS., INC. GEORGE REED, INC. HIGHWAY SPECIALTY COMPANY, INC. WAHLUND CONSTRUCTION, INC. MERCER-FRASER COMPANY PACIFIC INFRASTRUCTURE GRIFFITH COMPANY | I128: 1,2,3,4,5,6,10
A129: UNITED SWEEPING | B129: 43 | C129: ='[1]Construction Worksheet'!G751 -> 45000 | D129: M | E129: 1 | F129: =FETCHCOMMENT(E129) -> 10-1K8404 | G129: 1 | H129: =FETCHCOMMENT(G129) -> MOUNTAIN CASCADE INC | I129: 10
A130: UNIVERSAL CONCRETE CONSTRUCTION | B130: -4142 | C130: ='[1]Construction Worksheet'!G743 -> 1129682 | D130: M | E130: 1 | F130: =FETCHCOMMENT(E130) -> 08-0G8504 | G130: 1 | H130: =FETCHCOMMENT(G130) -> GRANITE CONSTRUCTION COMPANY | I130: 8
A131: V3 CONSTRCTION, INC. | B131: -4142 | C131: ='[1]Construction Worksheet'!G762 -> 3996938.2 | D131: M | E131: 1 | F131: =FETCHCOMMENT(E131) -> 08-1K6904 | G131: 1 | H131: =FETCHCOMMENT(G131) -> GRANITE CONSTRUCTION COMPANY | I131: 8
A132: VALDIVIA TRUCKING | B132: 43 | C132: ='[1]Construction Worksheet'!G770 -> 335050 | D132: M | E132: 1 | F132: =FETCHCOMMENT(E132) -> 04-4G7804 | G132: 1 | H132: =FETCHCOMMENT(G132) -> O.C. JONES & SONS, INC. | I132: 4
A133: VELARDE CONSTRUCTION | B133: -4142 | C133: ='[1]Construction Worksheet'!G777 -> 957173.96 | D133: M | E133: 1 | F133: =FETCHCOMMENT(E133) -> 08-1J5404 | G133: 1 | H133: =FETCHCOMMENT(G133) -> FLATIRON WEST, INC. | I133: 8
A134: WCW INC. | B134: -4142 | C134: ='[1]Construction Worksheet'!G791 -> 2552139.45 | D134: M | E134: 2 | F134: =FETCHCOMMENT(E134) -> 04-2Q8004 07-369704 | G134: 2 | H134: =FETCHCOMMENT(G134) -> GORDON N. BALL, INC. C. A. RASMUSSEN, INC. | I134: 4,7
A135: WEST PACIFIC CONCRETE | B135: -4142 | C135: ='[1]Construction Worksheet'!G795 -> 102378.03 | D135: M | E135: 1 | F135: =FETCHCOMMENT(E135) -> 08-1J2704 | G135: 1 | H135: =FETCHCOMMENT(G135) -> SULLY-MILLER CONTRACTING COMPANY | I135: 8
A136: WESTERN TRAFFIC SUPPLY, INC. | B136: 33 | C136: ='[1]Construction Worksheet'!G810 -> 6889177 | D136: M | E136: 11 | F136: =FETCHCOMMENT(E136) -> 04-2Q6104 04-2K7404 04-0P7604 04-2Q5504 04-3Q8504 04-2Q6504 04-1W0904 04-0AA624 04-2Q5204 03-3J9004 04-0G3604 | G136: 7 | H136: =FETCHCOMMENT(G136) -> GRANITE ROCK COMPANY BAY CITIES PAVING & GRADING INC ST. FRANCIS ELECTRIC, LLC. TENNYSON ELECTRIC LLC CROSSTOWN ELECTRICAL & DATA, INC. PACIFIC INFRASTRUCTURE INC BAY CITIES PAVING AND GRADING | I136: 3,4
A137: YMD MATERIAL BROKER | B137: 43 | C137: ='[1]Construction Worksheet'!C302 -> 240000 | D137: F | E137: 1 | F137: =FETCHCOMMENT(E137) -> 08-1J7204 | G137: 1 | H137: =FETCHCOMMENT(G137) -> SULLY-MILLER CONTRACTING COMPANY | I137: 8
A138: ZABEL ENTERPRISES | B138: 43 | C138: ='[1]Construction Worksheet'!G819 -> 970500 | D138: M | E138: 2 | F138: =FETCHCOMMENT(E138) -> 01-0J8904 01-0J2104 | G138: 1 | H138: =FETCHCOMMENT(G138) -> MERCER-FRASER COMPANY | I138: 4
F139: =FETCHCOMMENT(E139) ->  | H139: =FETCHCOMMENT(G139) -> 
F140: =FETCHCOMMENT(E140) ->  | H140: =FETCHCOMMENT(G140) -> 
F141: =FETCHCOMMENT(E141) ->  | H141: =FETCHCOMMENT(G141) -> 
A143: Native American | B143: Column1 | C143: Dollars | D143: M/F | E143: # of Contracts | F143: Contract # | G143: # of Primes | H143: Prime Name | I143: Districts
A144: CREST EQUIPMENT | B144: -4142 | C144: ='[1]Construction Worksheet'!K10 -> 534100 | D144: F | E144: 2 | F144: =FETCHCOMMENT(E144) -> 11-056404 11-430194 | G144: 2 | H144: =FETCHCOMMENT(G144) -> O.C. JONES & SONS, INC. HAZARD CONSTRUCTION COMPANY DBA HAZARD CONSRUCTION ENGR LLC | I144: 11
A145: DISABLED AMERICAN VETERAN ENTERPRISES TRUCKING & SWEEPING | B145: 33 | C145: ='[1]Construction Worksheet'!O15 -> 1049632 | D145: M | E145: 1 | F145: =FETCHCOMMENT(E145) -> 06-0W79U4 | G145: 1 | H145: =FETCHCOMMENT(G145) -> SECURITY PAVING COMPANY, INC. | I145: 6
A146: FORCE TRAFFIC CONTROL | B146: -4142 | C146: ='[1]Construction Worksheet'!O21 -> 150000 | D146: M | E146: 1 | F146: =FETCHCOMMENT(E146) -> 10-1H7004 | G146: 1 | H146: =FETCHCOMMENT(G146) -> GEORGE REED, INC. | I146: 10
A147: GLOBAL TRANSLOADING | B147: -4142 | C147: ='[1]Construction Worksheet'!K16 -> 165857 | D147: F | E147: 1 | F147: =FETCHCOMMENT(E147) -> 07-346104 | G147: 1 | H147: =FETCHCOMMENT(G147) -> POWELL CONSTRUCTORS, INC. | I147: 7
A148: G R SUNDBERG, INC. | B148: -4142 | C148: ='[1]Construction Worksheet'!O38 -> 7546784.25 | D148: M | E148: 6 | F148: =FETCHCOMMENT(E148) -> 01-0K4104 01-0J8904 01-0K9404 06-487404 04-0K8004 04-2K3604 | G148: 4 | H148: =FETCHCOMMENT(G148) -> G R SUNDBERG, INC. MERCER-FRASER COMPANY WYLATTI RESOURCE MANAGEMENT, INC. GHILOTTI BROS INC | I148: 1,4
A149: HUFFORD CONSTRUCTION | B149: -4142 | C149: ='[1]Construction Worksheet'!O45 -> 520000 | D149: M | E149: 1 | F149: =FETCHCOMMENT(E149) -> 01-0H6504 | G149: 1 | H149: =FETCHCOMMENT(G149) -> WAHLUND CONSTRUCTION, INC. | I149: 1
A150: KRC SAFETY CO INC | B150: 33 | C150: ='[1]Construction Worksheet'!O60 -> 2481589 | D150: M | E150: 8 | F150: =FETCHCOMMENT(E150) -> 05-1J7804 06-0X2504 05-1Q03U4 05-1K4504 05-1K5104 05-1K6404 06-487404 06-0Y1704 | G150: 4 | H150: =FETCHCOMMENT(G150) -> CALPORTLAND CONSTRUCTION PAPICH CONSTRUCTION COMPANY, INC. GRANITE CONSTRUCTION COMPANY CENTRAL COAST FINANCIAL GROUP, INC. DBA CCFG CONSTRUCTION | I150: 5,6
A151: SAM'S EQUIPMENT & SUPPLIES | B151: 33 | C151: ='[1]Construction Worksheet'!O70 -> 236621.79 | D151: M | E151: 3 | F151: =FETCHCOMMENT(E151) -> 09-387704 10-1L8704 06-0Y1704 | G151: 3 | H151: =FETCHCOMMENT(G151) -> SB GENERAL ENGINEERING INC GRANITE CONSTRUCTION COMPANY PAPICH CONSTRUCTION COMPANY, INC. | I151: 6,9,10
A152: SPIRIT ROAD OILS | B152: 33 | C152: ='[1]Construction Worksheet'!K35 -> 579728 | D152: F | E152: 3 | F152: =FETCHCOMMENT(E152) -> 04-2Q6104 04-0K6404 04-0AA624 | G152: 2 | H152: =FETCHCOMMENT(G152) -> GRANITE ROCK COMPANY HAZARD CONSTRUCTION ENGR, LLC | I152: 4
A153: SPURS TRUCKING AND EQUIPMENT, INC. | B153: 43 | C153: ='[1]Construction Worksheet'!K42 -> 52200 | D153: F | E153: 1 | F153: =FETCHCOMMENT(E153) -> 02-4H0604 | G153: 1 | H153: =FETCHCOMMENT(G153) -> HAT CREEK CONSTRUCTION & MATERIALS, INC. | I153: 2
A154: S.T. RHOADES CONSTRUCTION | B154: -4142 | C154: ='[1]Construction Worksheet'!O85 -> 3303725.65 | D154: M | E154: 8 | F154: =FETCHCOMMENT(E154) -> 02-4H0604 02-4H03U4 03-2J5904 02-4H0104 02-4H0704 03-1H1404 01-0J2104 02-0J8504 | G154: 5 | H154: =FETCHCOMMENT(G154) -> HAT CREEK CONSTRUCTION & MATERIALS, INC. STUDEBAKER ELECTRIC, INC. MARTIN BROTHERS CONSTRUCTION MERCER-FRASER COMPANY TULLIS INC | I154: 1,2,3
A155: WEST COAST DRILLING | B155: -4142 | C155: ='[1]Construction Worksheet'!K49 -> 6544740.15 | D155: F | E155: 2 | F155: =FETCHCOMMENT(E155) -> 06-487404 09-366804 | G155: 2 | H155: =FETCHCOMMENT(G155) -> GRANITE CONSTRUCTION COMPANY PAPICH CONSTRUCTION COMPANY | I155: 6,9
F156: =FETCHCOMMENT(E156) ->  | H156: =FETCHCOMMENT(G156) -> 
F157: =FETCHCOMMENT(E157) ->  | H157: =FETCHCOMMENT(G157) -> 
A159: African American | B159: Column1 | C159: Dollars | D159: M/F | E159: # of Contracts | F159: Contract # | G159: # of Primes | H159: Prime Name | I159: Districts
A160: ALLUVION BIOLOGICAL CONSULTING | B160: -4142 | C160: ='[1]Construction Worksheet'!W10 -> 160600 | D160: M | E160: 2 | F160: =FETCHCOMMENT(E160) -> 10-0Q2104 01-0J8904 | G160: 2 | H160: =FETCHCOMMENT(G160) -> BAY CITIES PAVING & GRADING, INC. MERCER-FRASER COMPANY | I160: 1,10
A161: AMERICAN TRAFFIC BARRICADE & SAFETY CO | B161: -4142 | C161: ='[1]Construction Worksheet'!W19 -> 23776.8 | D161: M | E161: 1 | F161: =FETCHCOMMENT(E161) -> 09-387704 | G161: 1 | H161: =FETCHCOMMENT(G161) -> SB GENERAL ENGINEERING INC | I161: 9
A162: APPIAN UDBE SWPPPS | B162: -4142 | C162: ='[1]Construction Worksheet'!S8 -> 750 | D162: F | E162: 1 | F162: =FETCHCOMMENT(E162) -> 05-1K6404 | G162: 1 | H162: =FETCHCOMMENT(G162) -> GRANITE CONSTRUCTION COMPANY | I162: 5
A163: BARYEH CONSTRUCTION ENGINEERS | B163: -4142 | C163: ='[1]Construction Worksheet'!W27 -> 666260 | D163: M | E163: 1 | F163: =FETCHCOMMENT(E163) -> 07-346804 | G163: 1 | H163: =FETCHCOMMENT(G163) -> TORO ENTERPRISES INC | I163: 7
A164: BLACK DIAMOND ASPHALT INC | B164: 33 | C164: ='[1]Construction Worksheet'!S24 -> 7189364.48 | D164: F | E164: 10 | F164: =FETCHCOMMENT(E164) -> 03-0J01U4 03-4H8704 01-0J8904 10-1L2804 04-2Q5504 10-1J8204 02-3H6904 01-0H6004 10-0Q2104 01-0J2104 | G164: 6 | H164: =FETCHCOMMENT(G164) -> MERCER-FRASER COMPANY O.C. JONES & SONS, INC. BAY CITIES PAVING & GRADING INC GEORGE REED, INC. DIG IT CONSTRUCTION, INC. ARGONAUT CONSTRUCTORS | I164: 1,3,4,10
A165: CGO CONSTRUCTION COMPANY | B165: -4142 | C165: ='[1]Construction Worksheet'!W35 -> 599600 | D165: M | E165: 3 | F165: =FETCHCOMMENT(E165) -> 08-1K4004 11-430194 12-0K8704 | G165: 3 | H165: =FETCHCOMMENT(G165) -> BEADOR CONSTRUCTION COMPANY, INC. HAZARD CONSTRUCTION COMPANY DBA HAZARD CONSRUCTION ENGR LLC ORTIZ ENTERPRISES, INC. | I165: 8,11,12
A166: DBE DIRECT, LLC | B166: -4142 | C166: ='[1]Construction Worksheet'!W41 -> 1168500 | D166: M | E166: 4 | F166: =FETCHCOMMENT(E166) -> 06-487404 08-1K6904 07-370404 12-0K8704 | G166: 3 | H166: =FETCHCOMMENT(G166) -> GRANITE CONSTRUCTION COMPANY GRIFFITH COMPANY ORTIZ ENTERPRISES, INC. | I166: 6,7,8,12
A167: DEPENDABLE PETROLEUM | B167: 33 | C167: ='[1]Construction Worksheet'!W54 -> 4025843.7 | D167: M | E167: 8 | F167: =FETCHCOMMENT(E167) -> 07-4X9704 08-1J4504 07-347904 12-0R3114 07-346304 08-0G8504 01-0K8904 10-1H7004 | G167: 6 | H167: =FETCHCOMMENT(G167) -> BEADOR CONSTRUCTION COMPANY, INC. ALL AMERICAN ASPHALT RASMUSSEN/VANGUARD GRANITE CONSTRUCTION COMPANY CHUMO CONSTRUCTION, INC. GEORGE REED, INC. | I167: 1,7,8,10,12
A168: DOUBLE G'S SUPPLY INC | B168: 33 | C168: ='[1]Construction Worksheet'!S45 -> 36206.66 | D168: F | E168: 1 | F168: =FETCHCOMMENT(E168) -> 11-430194 | G168: 1 | H168: =FETCHCOMMENT(G168) -> HAZARD CONSTRUCTION COMPANY DBA HAZARD CONSRUCTION ENGR LLC | I168: 11
A169: DYNAMIC GENERATOR SERVICE INC. | B169: -4142 | C169: ='[1]Construction Worksheet'!W60 -> 864025 | D169: M | E169: 2 | F169: =FETCHCOMMENT(E169) -> 10-1J8204 10-1N9004 | G169: 2 | H169: =FETCHCOMMENT(G169) -> GEORGE REED, INC. FBD VANGUARD CONSTRUCTION, INC. | I169: 10
A170: HYDRO2GEOTECH, LLC | B170: -4142 | C170: ='[1]Construction Worksheet'!W66 -> 247100 | D170: M | E170: 2 | F170: =FETCHCOMMENT(E170) -> 05-1H6504 12-0K91U4 | G170: 1 | H170: =FETCHCOMMENT(G170) -> GRANITE CONSTRUCTION COMPANY | I170: 5,12
A171: K&G CONCRETE PUMPING | B171: -4142 | C171: ='[1]Construction Worksheet'!W72 -> 44195.6 | D171: M | E171: 2 | F171: =FETCHCOMMENT(E171) -> 05-1K6404 04-2Q8004 | G171: 2 | H171: =FETCHCOMMENT(G171) -> GRANITE CONSTRUCTION COMPANY GORDON N. BALL, INC. | I171: 4,5
A172: MARVELLA STEEL PLACERS | B172: -4142 | C172: ='[1]Construction Worksheet'!S54 -> 486661.1 | D172: F | E172: 2 | F172: =FETCHCOMMENT(E172) -> 07-348204 12-0R3114 | G172: 2 | H172: =FETCHCOMMENT(G172) -> BOSCO CONSTRUCTORS, INC. BEADOR CONSTRUCTION COMPANY, INC. | I172: 7,12
A173: SNLM LANDSCAPE | B173: -4142 | C173: ='[1]Construction Worksheet'!W78 -> 328000 | D173: M | E173: 2 | F173: =FETCHCOMMENT(E173) -> 12-0K91U4 08-1M7404 | G173: 2 | H173: =FETCHCOMMENT(G173) -> GRANITE CONSTRUCTION COMPANY INTERSTATE CIVIL CONSTRUCTION | I173: 8,12
A174: SYNERGY TRAFFIC CONTROL | B174: -4142 | C174: ='[1]Construction Worksheet'!W87 -> 653325 | D174: M | E174: 1 | F174: =FETCHCOMMENT(E174) -> 12-0R3134 | G174: 1 | H174: =FETCHCOMMENT(G174) -> PETERSON-CHASE GENERAL ENGINEERING CONSTRUCTION, INC. | I174: 12
A175: THE QUALITY FIRM, ACS, AC SERVICES | B175: -4142 | C175: ='[1]Construction Worksheet'!W97 -> 477059 | D175: M | E175: 4 | F175: =FETCHCOMMENT(E175) -> 08-1J6104 08-1J2704 12-0K8704 07-355204 | G175: 4 | H175: =FETCHCOMMENT(G175) -> FBD VANGUARD CONSTRUCTION, INC. SULLY-MILLER CONTRACTING COMPANY ORTIZ ENTERPRISES, INC. GRANITE CONSTRUCTION COMPANY | I175: 7,8,12
A176: THOMPSON CONTRACTING | B176: -4142 | C176: ='[1]Construction Worksheet'!W103 -> 2516950 | D176: M | E176: 2 | F176: =FETCHCOMMENT(E176) -> 01-0F7104 02-0K6404 | G176: 2 | H176: =FETCHCOMMENT(G176) -> GHILOTTI CONSTRUCTION COMPANY, INC. MCCUEN CONSTRUCTION, INC. | I176: 1,2
A177: TIPCO ENGINEERING, INC. | B177: -4142 | C177: ='[1]Construction Worksheet'!W109 -> 2060770 | D177: M | E177: 2 | F177: =FETCHCOMMENT(E177) -> 08-1K4004 12-0K91U4 | G177: 2 | H177: =FETCHCOMMENT(G177) -> BEADOR CONSTRUCTION COMPANY, INC. GRANITE CONSTRUCTION COMPANY | I177: 8,12
A178: ULTIMATE SECURITY SERVICES INC | B178: -4142 | C178: ='[1]Construction Worksheet'!W117 -> 235200 | D178: M | E178: 1 | F178: =FETCHCOMMENT(E178) -> 07-354704 | G178: 1 | H178: =FETCHCOMMENT(G178) -> CERTIFIED COATINGS COMPANY | I178: 7
F179: =FETCHCOMMENT(E179) ->  | H179: =FETCHCOMMENT(G179) -> 
A181: Sub Cont Asian | B181: Column1 | C181: Dollars | D181: M/F | E181: # of Contracts | F181: Contract # | G181: # of Primes | H181: Prime Name | I181: Districts
A182: 5 AB TRANS, INC. | B182: -4142 | C182: ='[1]Construction Worksheet'!AE8 -> 201560 | D182: M | E182: 2 | F182: =FETCHCOMMENT(E182) -> 10-1H7004 03-3J9004 | G182: 2 | H182: =FETCHCOMMENT(G182) -> GRANITE CONSTRUCTION COMPANY PACIFIC INFRASTRUCTURE INC | I182: 1,3
A183: A1 TRUCKING SVS INC | B183: 43 | C183: ='[1]Construction Worksheet'!AE18 -> 982657.44 | D183: M | E183: 4 | F183: =FETCHCOMMENT(E183) -> 04-0P7604 04-2Q8004 05-1H6504 05-1G9504 | G183: 3 | H183: =FETCHCOMMENT(G183) -> ST. FRANCIS ELECTRIC, LLC. GORDON N. BALL, INC. GRANITE CONSTRUCTION COMPANY | I183: 4,5
A184: A1 TRUCKING SERVICES INC | B184: 43 | C184: ='[1]Construction Worksheet'!AE24 -> 2895520 | D184: M | E184: 3 | F184: =FETCHCOMMENT(E184) -> 04-1W0904 04-0AA624 04-0G3604 | G184: 3 | H184: =FETCHCOMMENT(G184) -> CROSSTOWN ELECTRICAL & DATA INC GRANITE ROCK COMPANY BAY CITIES PAVING & GRADING, INC. | I184: 4
A185: AMERICA PACIFIC CONSTRUCTION | B185: 43 | C185: ='[1]Construction Worksheet'!AE33 -> 285426 | D185: M | E185: 1 | F185: =FETCHCOMMENT(E185) -> 08-1P2804 | G185: 1 | H185: =FETCHCOMMENT(G185) -> AMERICA PACIFIC CONSTRUCTION INC | I185: 8
A186: C.C. PRODUCTS, INC. | B186: 33 | C186: ='[1]Construction Worksheet'!AE49 -> 1396448 | D186: M | E186: 1 | F186: =FETCHCOMMENT(E186) -> 12-0R3114 | G186: 1 | H186: =FETCHCOMMENT(G186) -> BEADOR CONSTRUCTION COMPANY, INC. | I186: 12
A187: CENTRAL TRUCKING, INC. | B187: 43 | C187: ='[1]Construction Worksheet'!AE55 -> 864403.6 | D187: M | E187: 4 | F187: =FETCHCOMMENT(E187) -> 10-0Q2104 10-1L8704 10-1J8204 10-1K8404 | G187: 4 | H187: =FETCHCOMMENT(G187) -> BAY CITIES PAVING & GRADING, INC. GRANITE CONSTRUCTION COMPANY GEORGE REED, INC. MOUNTAIN CASCADE INC | I187: 9,10
A188: DESTINATION ANYWHERE, INC. | B188: 33 | C188: ='[1]Construction Worksheet'!AE43 -> 84000 | D188: M | E188: 1 | F188: =FETCHCOMMENT(E188) -> 10-1L2804 | G188: 1 | H188: =FETCHCOMMENT(G188) -> O.C. JONES & SONS, INC. | I188: 10
A189: GEODE ENVIRONMENTAL | B189: -4142 | C189: ='[1]Construction Worksheet'!AA10 -> 225500 | D189: M | E189: 1 | F189: =FETCHCOMMENT(E189) -> 09-374704 | G189: 1 | H189: =FETCHCOMMENT(G189) -> PAPICH CONSTRUCTION COMPANY | I189: 9
A190: JABI TRUCKING | B190: 43 | C190: ='[1]Construction Worksheet'!AE64 -> 3482110 | D190: M | E190: 2 | F190: =FETCHCOMMENT(E190) -> 01-0H6004 01-0H6404 | G190: 2 | H190: =FETCHCOMMENT(G190) -> ARGONAUT CONSTRUCTORS | I190: 1
A191: JASS BOYS TRUCK LINES | B191: 43 | C191: ='[1]Construction Worksheet'!AE75 -> 3650023 | D191: M | E191: 5 | F191: =FETCHCOMMENT(E191) -> 04-2K7404 04-0K8004 04-2Q5504 04-0Q2004 04-2Q5204 | G191: 2 | H191: =FETCHCOMMENT(G191) -> BAY CITIES PAVING & GRADING, INC. GHILOTTI BROS INC | I191: 4
A192: NAMAN TRUCKING | B192: 43 | C192: ='[1]Construction Worksheet'!AE85 -> 1265085.4 | D192: M | E192: 5 | F192: =FETCHCOMMENT(E192) -> 04-0Q2004 07-347904 07-348204 07-369704 07-346504 | G192: 5 | H192: =FETCHCOMMENT(G192) -> GHILOTTI BROS., INC. RASMUSSEN/VANGUARD BOSCO CONSTRUCTORS, INC. C.A. RASMUSSEN INC SECURITY PAVING COMPANY, INC. | I192: 4,7
A193: R&G TRUCKING | B193: 43 | C193: ='[1]Construction Worksheet'!AE90 -> 289437 | D193: M | E193: 2 | F193: =FETCHCOMMENT(E193) -> 01-0K8904 04-2K3604 | G193: 2 | H193: =FETCHCOMMENT(G193) -> GRANITE CONSTRUCTION COMPANY GHILOTTI BROS., INC. | I193: 1,4
A194: S&S TRUCKING | B194: 43 | C194: ='[1]Construction Worksheet'!AE96 -> 225150 | D194: M | E194: 1 | F194: =FETCHCOMMENT(E194) -> 01-0F7104 | G194: 1 | H194: =FETCHCOMMENT(G194) -> GHILOTTI CONSTRUCTION COMPANY, INC. | I194: 1
A195: SEQUOIA CONSULTANTS | B195: 33 | C195: ='[1]Construction Worksheet'!AE123 -> 2127048.97 | D195: M | E195: 16 | F195: =FETCHCOMMENT(E195) -> 03-4H8704 11-430384 08-1J6104 12-0R3134 11-056404 06-487404 08-1K4004 08-1K6904 09-374704 06-0Y1704 07-347904 07-351704 12-0R3114 07-369704 08-0G8504 11-430194 | G195: 9 | H195: =FETCHCOMMENT(G195) -> O.C. JONES & SONS, INC. HAZARD CONSTRUCTION ENGR, LLC FBD VANGUARD CONSTRUCTION, INC. PETERSON-CHASE GENERAL ENGINEERING CONSTRUCTION, INC. GRANITE CONSTRUCTION COMPANY BEADOR CONSTRUCTION COMPANY, INC. PAPICH CONSTRUCTION COMPANY INC RASMUSSEN/VANGUARD C. A. RASMUSSEN, INC. | I195: 3,6,7,8,9,11,12
A196: SIERRA GEOTECH DBE INC | B196: -4142 | C196: ='[1]Construction Worksheet'!AE138 -> 276815.64 | D196: M | E196: 5 | F196: =FETCHCOMMENT(E196) -> 03-0J01U4 01-0F7104 05-1H6504 04-2Q6504 05-1G9504 | G196: 5 | H196: =FETCHCOMMENT(G196) -> MERCER-FRASER COMPANY GHILOTTI CONSTRUCTION COMPANY, INC. GRANITE CONSTRUCTION COMPANY BAY CITIES PAVING & GRADING, INC. GORDON N BALL INC | I196: 1,3,4,5
A197: TSI ENGINEERING, INC. | B197: -4142 | C197: ='[1]Construction Worksheet'!AE147 -> 6124087 | D197: M | E197: 1 | F197: =FETCHCOMMENT(E197) -> 08-1J3304 | G197: 1 | H197: =FETCHCOMMENT(G197) -> TSI ENGINEERING, INC. | I197: 8
F198: =FETCHCOMMENT(E198) ->  | H198: =FETCHCOMMENT(G198) -> 
F199: =FETCHCOMMENT(E199) ->  | H199: =FETCHCOMMENT(G199) -> 
F200: =FETCHCOMMENT(E200) ->  | H200: =FETCHCOMMENT(G200) -> 
F201: =FETCHCOMMENT(E201) ->  | H201: =FETCHCOMMENT(G201) -> 
F202: =FETCHCOMMENT(E202) ->  | H202: =FETCHCOMMENT(G202) -> 
A204: Asian Pacific | B204: Column1 | C204: Dollars | D204: M/F | E204: # of Contracts | F204: Contract # | G204: # of Primes | H204: Prime Name | I204: Districts
A205: ACCU CONSTRUCTION | B205: -4142 | C205: ='[1]Construction Worksheet'!AM10 -> 1452600 | D205: M | E205: 3 | F205: =FETCHCOMMENT(E205) -> 07-348404 07-356504 07-356804 | G205: 1 | H205: =FETCHCOMMENT(G205) -> ACCU CONSTRUCTION, INC. | I205: 7
A206: ACE FENCE COMPANY | B206: 33 | C206: ='[1]Construction Worksheet'!AI31 -> 12936759.22 | D206: F | E206: 19 | F206: =FETCHCOMMENT(E206) -> 11-430384 06-0X250 07-333604 12-0R3134 05-1Q03U4 08-1J3004 11-056404 06-487404 07-4X9704 12-0K91U4 12-0R3154 08-1K6904 06-0Y1704 12-0R3114 06-0W79U4 08-0G8504 11-430194 07-346504 06-0U2904 | G206: 9 | H206: =FETCHCOMMENT(G206) -> HAZARD CONSTRUCTION ENGR, LLC GRANITE CONSTRUCTION COMPANY SULLY-MILLER CONTRACTING COMPANY PETERSON-CHASE GENERAL ENGINEERING CONSTRUCTION, INC. PAPICH CONSTRUCTION COMPANY, INC. BEADOR CONSTRUCTION COMPANY, INC. POWELL CONSTRUCTORS, INC. SECURITY PAVING COMPANY, INC. GRIFFITH COMPANY | I206: 5,6,7,8,11,12
A207: ACE SWEEPERS & WATER TRUCKS | B207: 43 | C207: ='[1]Construction Worksheet'!AM18 -> 355618.5 | D207: M | E207: 5 | F207: =FETCHCOMMENT(E207) -> 04-0K6404 04-3J2604 10-1L2804 04-4G7804 04-2Q6504 | G207: 2 | H207: =FETCHCOMMENT(G207) -> O.C. JONES & SONS, INC. BAY CITIES PAVING & GRADING, INC. | I207: 4,10
... 134 more rows
